fUST/lending_fUST_20240701
["ID","MTS","AMOUNT","RATE_DAILY","PERIOD"]
[330791193,1719789664683,500.0,0.0001501,2]
[330791195,1719789668358,500.0,0.0001501,2]
[330791196,1719789669309,500.0,0.0001501,2]
[330791197,1719789671031,242.96812057,0.0001501,2]
[330791198,1719789671599,500.0,0.0001501,2]
[330791199,1719789677297,500.0,0.0001501,2]
[330791200,1719789678257,500.0,0.0001501,2]
[330791201,1719789684461,1457.48,0.0001501,2]
[330791202,1719789684546,500.0,0.0001501,2]
[330791203,1719789688669,500.0,0.0001501,2]
[330791204,1719789689110,500.0,0.0001501,2]
[330791205,1719789691221,10084.8,0.0001501,2]
[330791206,1719789691989,1017.07,0.0001501,2]
[330791207,1719789693064,503.08456191,0.0001501,2]
[330791208,1719789694465,771.76,0.0001501,2]
[330791209,1719789700221,500.0,0.0001501,2]
[330791210,1719789707003,500.0,0.0001501,2]
[330791211,1719789707738,1409.08,0.0001501,2]
[330791212,1719789708051,500.0,0.0001501,2]
[330791213,1719789714307,500.0,0.0001501,2]
[330791214,1719789715469,611.91453679,0.0001501,2]
[330791215,1719789716615,706.26,0.0001501,2]
[330791216,1719789718926,500.0,0.0001501,2]
[330791217,1719789719748,1252.64,0.0001501,2]
[330791218,1719789720450,2660.51,0.0001501,2]
[330791219,1719789720639,500.0,0.0001501,2]
[330791220,1719789720756,500.0,0.0001501,2]
[330791221,1719789722145,500.0,0.0001501,2]
[330791222,1719789722842,739.88,0.0001501,2]
[330791223,1719789725621,589.1634955,0.0001501,2]
[330791224,1719789725985,504.73900056,0.0001501,2]
[330791225,1719789726198,500.0,0.0001501,2]
[330791226,1719789730085,1423.1,0.0001501,2]
[330791227,1719789734219,500.0,0.0001501,2]
[330791228,1719789740449,500.0,0.0001501,2]
[330791229,1719789741158,6279.1,0.0001501,2]
[330791230,1719789741420,500.0,0.0001501,2]
[330791231,1719789748245,526.2306691,0.0001501,2]
[330791232,1719789748289,500.0,0.0001501,2]
[330791233,1719789756613,777.05,0.0001501,2]
[330791234,1719789758895,1213.67,0.0001501,2]
[330791235,1719789760214,1896.4,0.0001501,2]
[330791236,1719789760303,500.0,0.0001501,2]
[330791237,1719789765067,500.0,0.0001501,2]
[330791239,1719789766409,374.34070417,0.0001501,2]
[330791240,1719789769162,1639.28,0.0001501,2]
[330791241,1719789773012,500.0,0.0001501,2]
[330791242,1719789775132,709.05,0.0001501,2]
[330791243,1719789776314,676.84,0.0001501,2]
[330791244,1719789779784,500.0,0.0001501,2]
[330791245,1719789781437,500.0,0.0001501,2]
[330791246,1719789782889,500.0,0.0001501,2]
[330791247,1719789783702,500.0,0.0001501,2]
[330791248,1719789796551,500.0,0.0001501,2]
[330791249,1719789802766,796.0,0.0001501,2]
[330791250,1719789807980,2103.73,0.0001501,2]
[330791251,1719789818272,500.0,0.0001501,2]
[330791253,1719789822160,500.0,0.0001501,2]
[330791254,1719789826029,2422.7,0.0001501,2]
[330791255,1719789826947,500.0,0.0001501,2]
[330791256,1719789828473,500.0,0.0001501,2]
[330791257,1719789831508,503.71,0.0001501,2]
[330791258,1719789836116,500.0,0.0001501,2]
[330791259,1719789836309,547.7,0.0001501,2]
[330791260,1719789837311,1209.33,0.0001501,2]
[330791261,1719789841328,935.81,0.0001501,2]
[330791262,1719789846621,500.0,0.0001501,2]
[330791263,1719789846716,500.0,0.0001501,2]
[330791264,1719789848946,500.0,0.0001501,2]
[330791265,1719789849736,500.0,0.0001501,2]
[330791266,1719789851228,500.0,0.0001501,2]
[330791267,1719789855967,500.0,0.0001501,2]
[330791268,1719789858109,9140.88,0.0001501,2]
[330791269,1719789860288,762.83,0.0001501,2]
[330791270,1719789861988,1161.45,0.0001501,2]
[330791271,1719789864640,270.30439416,0.0001501,2]
[330791273,1719789864992,500.0,0.0001501,2]
[330791274,1719789872142,911.88,0.0001501,2]
[330791275,1719789873192,1352.77,0.0001501,2]
[330791276,1719789873314,543.17160151,0.0001501,2]
[330791278,1719789877393,500.0,0.0001501,2]
[330791279,1719789880960,3997.18,0.0001501,2]
[330791280,1719789881164,500.0,0.0001501,2]
[330791281,1719789883411,500.0,0.0001501,2]
[330791282,1719789884345,500.0,0.0001501,2]
[330791283,1719789887386,500.0,0.0001501,2]
[330791284,1719789887860,500.0,0.0001501,2]
[330791286,1719789899758,500.0,0.0001501,2]
[330791287,1719789902552,500.0,0.0001501,2]
[330791288,1719789905115,512.11720004,0.0001501,2]
[330791289,1719789907480,500.0,0.0001501,2]
[330791290,1719789907553,500.0,0.0001501,2]
[330791291,1719789912405,500.0,0.0001501,2]
[330791292,1719789914924,500.0,0.0001501,2]
[330791293,1719789915134,8760.01,0.0001501,2]
[330791294,1719789916047,1050.33,0.0001501,2]
[330791295,1719789917617,500.0,0.0001501,2]
[330791296,1719789921130,500.0,0.0001501,2]
[330791297,1719789922484,500.0,0.0001501,2]
[330791299,1719789924503,500.0,0.0001501,2]
[330791300,1719789927839,504.37643809,0.0001501,2]
[330791301,1719789929408,500.0,0.0001501,2]
[330791302,1719789929887,509.30501904,0.0001501,2]
[330791303,1719789930910,9010.69,0.0001501,2]
[330791304,1719789934186,500.0,0.0001501,2]
[330791305,1719789934240,500.0,0.0001501,2]
[330791306,1719789934797,500.0,0.0001501,2]
[330791307,1719789936055,570.52,0.0001501,2]
[330791308,1719789936433,500.0,0.0001501,2]
[330791309,1719789938138,500.0,0.0001501,2]
[330791310,1719789938374,619.69557362,0.0001501,2]
[330791311,1719789940305,500.0,0.0001501,2]
[330791312,1719789941959,532.66960155,0.0001501,2]
[330791313,1719789947709,500.0,0.0001501,2]
[330791314,1719789948458,500.0,0.0001501,2]
[330791315,1719789949912,500.0,0.0001501,2]
[330791316,1719789952234,500.0,0.0001501,2]
[330791317,1719789952369,9664.6,0.0001501,2]
[330791318,1719789952874,504.99873473,0.0001501,2]
[330791319,1719789953143,7412.59,0.0001501,2]
[330791320,1719789956733,500.0,0.0001501,2]
[330791321,1719789957384,500.0,0.0001501,2]
[330791322,1719789960252,500.0,0.0001501,2]
[330791323,1719789965222,500.0,0.0001501,2]
[330791324,1719789967928,1350.37,0.0001501,2]
[330791325,1719789968935,1200.45,0.0001501,2]
[330791327,1719789969620,500.0,0.0001501,2]
[330791328,1719789970609,524.03,0.0001501,2]
[330791330,1719789976959,500.0,0.0001501,2]
[330791331,1719789979879,1363.81,0.0001501,2]
[330791332,1719789983113,2549.66,0.0001501,2]
[330791333,1719789984590,196.38696465,0.0001501,2]
[330791334,1719789988691,516.64,0.0001501,2]
[330791335,1719789988995,6017.47,0.0001501,2]
[330791338,1719789995358,500.0,0.0001501,2]
[330791339,1719789996471,500.0,0.0001501,2]
[330791340,1719789997465,915.0,0.0001501,2]
[330791341,1719790008372,1817.38,0.0001501,2]
[330791342,1719790009535,500.0,0.0001501,2]
[330791343,1719790011085,500.0,0.0001501,2]
[330791344,1719790011486,500.0,0.0001501,2]
[330791345,1719790011957,500.0,0.0001501,2]
[330791346,1719790017878,744.67,0.0001501,2]
[330791347,1719790019330,500.0,0.0001501,2]
[330791348,1719790020109,535.38,0.0001501,2]
[330791349,1719790020975,500.0,0.0001501,2]
[330791352,1719790033807,657.67,0.0001501,2]
[330791353,1719790036115,500.0,0.0001501,2]
[330791354,1719790039209,500.0,0.0001501,2]
[330791355,1719790039335,500.0,0.0001501,2]
[330791356,1719790040671,500.0,0.0001501,2]
[330791357,1719790045522,500.0,0.0001501,2]
[330791358,1719790051171,848.98499647,0.00015,2]
[330791359,1719790051220,500.0,0.0001501,2]
[330791360,1719790053776,506.88308617,0.0001501,2]
[330791361,1719790056121,837.84,0.0001501,2]
[330791362,1719790059625,524.88,0.0001501,2]
[330791363,1719790059939,500.0,0.0001501,2]
[330791364,1719790062391,3365.8,0.0001501,2]
[330791365,1719790064011,2016.08,0.0001501,2]
[330791366,1719790066746,594.91,0.0001501,2]
[330791367,1719790069676,500.0,0.0001501,2]
[330791368,1719790078010,1044.17,0.0001501,2]
[330791369,1719790081356,2321.76,0.0001501,2]
[330791370,1719790086840,589.74,0.0001501,2]
[330791371,1719790091936,500.0,0.0001501,2]
[330791372,1719790093940,1153.95,0.0001501,2]
[330791373,1719790094454,1158.94,0.0001501,2]
[330791374,1719790097334,500.0,0.0001501,2]
[330791376,1719790103624,387.46620817,0.0001501,2]
[330791377,1719790105812,500.0,0.0001501,2]
[330791378,1719790107620,500.0,0.0001501,2]
[330791379,1719790109992,500.0,0.0001501,2]
[330791380,1719790112566,500.0,0.0001501,2]
[330791381,1719790114391,503.01,0.0001501,2]
[330791382,1719790117951,1113.06,0.0001501,2]
[330791383,1719790119919,500.0,0.0001501,2]
[330791384,1719790125148,500.0,0.0001501,2]
[330791385,1719790128076,500.0,0.0001501,2]
[330791386,1719790130098,500.0,0.0001501,2]
[330791387,1719790130426,500.0,0.0001501,2]
[330791388,1719790132860,500.0,0.0001501,2]
[330791389,1719790134638,500.0,0.0001501,2]
[330791390,1719790134836,1088.61,0.0001501,2]
[330791391,1719790136811,3830.63,0.0001501,2]
[330791392,1719790140744,8635.24,0.0001501,2]
[330791393,1719790145010,500.0,0.0001501,2]
[330791394,1719790147170,500.0,0.0001501,2]
[330791395,1719790153771,500.0,0.0001501,2]
[330791396,1719790153830,-398.06,0.00015011,2]
[330791397,1719790153862,-251.01060603,0.00015011,2]
[330791398,1719790153900,-248.98939397,0.00015011,2]
[330791399,1719790153934,-291.73813027,0.00015011,2]
[330791400,1719790158031,500.0,0.0001501,2]
[330791401,1719790165901,1382.91,0.0001501,2]
[330791402,1719790170527,8275.44,0.0001501,2]
[330791403,1719790175211,7103.74,0.0001501,2]
[330791404,1719790178641,-208.26186973,0.00015011,2]
[330791405,1719790178672,-464.6046989,0.00015011,2]
[330791406,1719790178709,-35.3953011,0.00015011,2]
[330791407,1719790178739,-500.0,0.00015011,2]
[330791408,1719790178771,-137.47126753,0.00015011,2]
[330791409,1719790178810,-207.98626639,0.00015011,2]
[330791410,1719790181348,500.0,0.0001501,2]
[330791411,1719790183035,500.0,0.0001501,2]
[330791412,1719790188418,500.0,0.0001501,2]
[330791413,1719790188911,500.0,0.0001501,2]
[330791414,1719790189772,500.0,0.0001501,2]
[330791415,1719790191499,527.78,0.0001501,2]
[330791416,1719790200440,500.0,0.0001501,2]
[330791417,1719790203626,-500.0,0.00015011,2]
[330791418,1719790203667,-203.94095671,0.00015011,2]
[330791419,1719790203712,-296.05904329,0.00015011,2]
[330791420,1719790203753,-277.2548668,0.00015011,2]
[330791421,1719790209616,500.0,0.0001501,2]
[330791422,1719790211676,562.4,0.0001501,2]
[330791423,1719790216319,500.0,0.0001501,2]
[330791424,1719790216834,500.0,0.0001501,2]
[330791425,1719790217077,500.0,0.0001501,2]
[330791426,1719790218718,500.0,0.0001501,2]
[330791427,1719790228826,6807.75,0.0001501,2]
[330791428,1719790229400,500.0,0.0001501,2]
[330791429,1719790231192,1150.43,0.0001501,2]
[330791430,1719790231503,500.0,0.0001501,2]
[330791632,1719790234826,-222.7451332,0.00015011,2]
[330791634,1719790234836,-500.0,0.00015011,2]
[330791636,1719790234846,-1015.15,0.00015011,2]
[330791638,1719790234856,-500.0,0.00015011,2]
[330791640,1719790234866,-500.0,0.00015011,2]
[330791642,1719790234875,-500.0,0.00015011,2]
[330791644,1719790234885,-500.0,0.00015011,2]
[330791647,1719790234896,-500.0,0.00015011,2]
[330791650,1719790234905,-758.77,0.00015011,2]
[330791653,1719790234915,-500.0,0.00015011,2]
[330791655,1719790234924,-500.0,0.00015011,2]
[330791657,1719790234936,-856.35,0.00015011,2]
[330791659,1719790234945,-500.0,0.00015011,2]
[330791661,1719790234955,-500.0,0.00015011,2]
[330791663,1719790234964,-554.23,0.00015011,2]
[330791665,1719790234973,-740.63,0.00015011,2]
[330791666,1719790234982,-500.0,0.00015011,2]
[330791668,1719790234992,-292.82837642,0.00015011,2]
[330792005,1719790240282,1306.98,0.0001501,2]
[330792013,1719790240457,-218.37162358,0.00015011,2]
[330792015,1719790240471,-782.2,0.00015011,2]
[330792017,1719790240481,-500.0,0.00015011,2]
[330792019,1719790240492,-500.0,0.00015011,2]
[330792021,1719790240502,-978.86,0.00015011,2]
[330792022,1719790240512,-731.05,0.00015011,2]
[330792024,1719790240523,-500.0,0.00015011,2]
[330792025,1719790240533,-4976.94,0.00015011,2]
[330792026,1719790240543,-500.0,0.00015011,2]
[330792027,1719790240553,-500.0,0.00015011,2]
[330792028,1719790240563,-4876.72587544,0.00015011,2]
[330792132,1719790248832,-3518.28412456,0.00015011,2]
[330792134,1719790248843,-500.0,0.00015011,2]
[330792135,1719790248853,-346.72599198,0.00015011,2]
[330792136,1719790248864,-261.81,0.00015011,2]
[330792137,1719790248876,-282.5,0.00015011,2]
[330792138,1719790248926,5766.74,0.0001501,2]
[330792139,1719790266352,7930.63,0.0001501,2]
[330792140,1719790267846,1741.66,0.0001501,2]
[330792141,1719790271193,500.0,0.0001501,2]
[330792142,1719790277256,500.0,0.0001501,2]
[330792143,1719790280086,3225.55,0.0001501,2]
[330792144,1719790294228,500.0,0.0001501,2]
[330792145,1719790294747,166.96505263,0.0001,2]
[330792146,1719790297010,500.0,0.0001501,2]
[330792147,1719790300879,938.08,0.0001501,2]
[330792148,1719790305754,500.0,0.0001501,2]
[330792149,1719790307308,627.75135941,0.0001501,2]
[330792150,1719790309314,1105.87,0.0001501,2]
[330792151,1719790311905,500.0,0.0001501,2]
[330792152,1719790314337,500.0,0.0001501,2]
[330792153,1719790318350,500.0,0.0001501,2]
[330792154,1719790319252,7600.19,0.0001501,2]
[330792155,1719790330597,500.0,0.0001501,2]
[330792156,1719790330789,3091.16,0.0001501,2]
[330792157,1719790333920,500.0,0.0001501,2]
[330792158,1719790334995,500.0,0.0001501,2]
[330792159,1719790339488,4769.56,0.0001501,2]
[330792160,1719790339716,972.85,0.0001501,2]
[330792161,1719790339802,500.0,0.0001501,2]
[330792162,1719790341348,10483.8807642,0.00014518,2]
[330792163,1719790345048,500.0,0.0001501,2]
[330792181,1719790360072,1059.79,0.0001501,2]
[330792182,1719790362922,500.0,0.0001501,2]
[330792183,1719790364635,500.0,0.0001501,2]
[330792184,1719790376611,1325.29,0.0001501,2]
[330792185,1719790378557,500.0,0.0001501,2]
[330792186,1719790390495,561.71541164,0.0001501,2]
[330792187,1719790391654,633.35,0.0001501,2]
[330792188,1719790393745,4469.22,0.0001501,2]
[330792189,1719790399277,500.0,0.0001501,2]
[330792190,1719790403449,500.0,0.0001501,2]
[330792191,1719790423664,500.0,0.0001501,2]
[330792192,1719790430465,500.0,0.0001501,2]
[330792193,1719790430953,500.0,0.0001501,2]
[330792194,1719790431926,1270.07,0.0001501,2]
[330792195,1719790432351,538.97,0.0001501,2]
[330792196,1719790440963,500.0,0.0001501,2]
[330792197,1719790441226,937.56,0.0001501,2]
[330792198,1719790441489,300.0,0.0001501,2]
[330792199,1719790445921,727.15,0.0001501,2]
[330792200,1719790465457,898.99,0.0001501,2]
[330792201,1719790467435,882.74,0.0001501,2]
[330792218,1719790473110,500.0,0.0001501,2]
[330792223,1719790475778,500.0,0.0001501,2]
[330792224,1719790482186,516.51,0.0001501,2]
[330792225,1719790485052,500.0,0.0001501,2]
[330792226,1719790491124,500.0,0.0001501,2]
[330792227,1719790491655,820.66,0.0001501,2]
[330792228,1719790500974,300.0,0.0001501,2]
[330792229,1719790502467,861.53,0.0001501,2]
[330792230,1719790511458,679.51,0.0001501,2]
[330792231,1719790514000,500.0,0.0001501,2]
[330792232,1719790514463,500.0,0.0001501,2]
[330792233,1719790514948,4570.83,0.0001501,2]
[330792235,1719790518815,500.0,0.0001501,2]
[330792236,1719790531201,340.96059704,0.0001501,2]
[330792239,1719790545214,500.0,0.0001501,2]
[330792240,1719790549494,531.14,0.0001501,2]
[330792241,1719790552872,898.5,0.0001501,2]
[330792242,1719790560088,500.0,0.0001501,2]
[330792243,1719790560703,825.63,0.0001501,2]
[330792244,1719790560961,300.0,0.0001501,2]
[330792246,1719790568871,150.83408251,0.00020328,30]
[330792247,1719790568923,150.83408251,0.00019921,120]
[330792248,1719790576141,500.0,0.0001501,2]
[330792250,1719790580348,709.77,0.0001501,2]
[330792251,1719790580910,700.59,0.0001501,2]
[330792252,1719790586213,4283.0,0.0001501,2]
[330792253,1719790592948,500.0,0.0001501,2]
[330792255,1719790599111,861.06,0.0001501,2]
[330792256,1719790601287,4380.38,0.0001501,2]
[330792257,1719790606828,791.23,0.0001501,2]
[330792259,1719790609868,500.0,0.0001501,2]
[330792260,1719790621285,749.61,0.0001501,2]
[330792261,1719790630107,651.2,0.0001501,2]
[330792262,1719790633866,8045.22,0.0001501,2]
[330792263,1719790637385,4104.54,0.0001501,2]
[330792264,1719790641699,500.0,0.0001501,2]
[330792265,1719790643840,500.0,0.0001501,2]
[330792266,1719790649144,4197.87,0.0001501,2]
[330792267,1719790649796,500.0,0.0001501,2]
[330792268,1719790665065,500.0,0.0001501,2]
[330792269,1719790665116,845.96,0.0001501,2]
[330792270,1719790677384,624.06,0.0001501,2]
[330792271,1719790696403,500.0,0.0001501,2]
[330792272,1719790696971,825.18,0.0001501,2]
[330792273,1719790702353,500.0,0.0001501,2]
[330792274,1719790708302,500.0,0.0001501,2]
[330792275,1719790713645,671.4,0.0001501,2]
[330792276,1719790716974,810.71,0.0001501,2]
[330792277,1719790723804,500.0,0.0001501,2]
[330792278,1719790731652,500.0,0.0001501,2]
[330792279,1719790731905,648.64,0.0001501,2]
[330792280,1719790741772,790.8,0.0001501,2]
[330792281,1719790758818,643.42,0.0001501,2]
[330792282,1719790762966,7710.0,0.0001501,2]
[330792283,1719790769567,598.06,0.0001501,2]
[330792284,1719790786470,500.0,0.0001501,2]
[330792285,1719790796764,7388.75,0.0001501,2]
[330792286,1719790804495,500.0,0.0001501,2]
[330792287,1719790804596,500.0,0.0001501,2]
[330792288,1719790823755,573.14,0.0001501,2]
[330792297,1719790856519,616.61,0.0001501,2]
[330792298,1719790862773,500.0,0.0001501,2]
[330792299,1719790914365,7080.89,0.0001501,2]
[330792300,1719790917827,590.92,0.0001501,2]
[330792301,1719790963642,154.83742071,0.00014999,2]
[330792302,1719790973900,621.61,0.0001501,2]
[330792303,1719790974316,6785.85,0.0001501,2]
[330792304,1719791020089,595.71,0.0001501,2]
[330792305,1719791050459,500.0,0.0001501,2]
[330792307,1719791068324,500.0,0.0001501,2]
[330792308,1719791095668,532.5009163,0.0001501,2]
[330792310,1719791274145,7283.51,0.0001501,2]
[330792311,1719791311307,500.0,0.0001501,2]
[330792312,1719791321146,500.0,0.0001501,2]
[330792313,1719791354924,599.93257312,0.0001501,2]
[330792365,1719791438013,500.0,0.0001501,2]
[330792415,1719791441974,-903.98762828,0.00015389,2]
[330792417,1719791441983,-114.57907374,0.00015402,2]
[330792480,1719791442930,-157.72984906,0.00015402,2]
[330792481,1719791442939,-234.46615044,0.00015554,2]
[330792484,1719791443037,-265.53384956,0.00015554,2]
[330792485,1719791443046,-500.0,0.00015554,2]
[330792486,1719791443056,-500.0,0.00015554,2]
[330792487,1719791443065,-500.0,0.00015554,2]
[330792488,1719791443074,-1000.0,0.00015554,2]
[330792489,1719791443083,-500.0,0.00015554,2]
[330792490,1719791443092,-500.0,0.00015554,2]
[330792491,1719791443101,-500.0,0.00015554,2]
[330792492,1719791443110,-500.0,0.00015554,2]
[330792493,1719791443119,-1207.89076896,0.00015554,2]
[330792520,1719791445974,-88.50923104,0.00015554,2]
[330792522,1719791445983,-500.0,0.00015554,2]
[330792523,1719791445993,-500.0,0.00015554,2]
[330792525,1719791446003,-632.79076886,0.00015554,2]
[330792528,1719791446099,-393.19923114,0.00015554,2]
[330792529,1719791446109,-336.25272457,0.00015554,2]
[330792530,1719791446120,-918.64713147,0.00015554,2]
[330792531,1719791508993,500.0,0.0001501,2]
[330792532,1719791515091,6980.03,0.0001501,2]
[330792533,1719791554486,6689.2,0.0001501,2]
[330792534,1719791557765,500.0,0.0001501,2]
[330792535,1719791600706,500.0,0.0001501,2]
[330792536,1719791611215,758.27,0.0001501,2]
[330792537,1719791651928,4022.95,0.0001501,2]
[330792538,1719791670440,500.0,0.0001501,2]
[330792539,1719791708692,500.0,0.0001501,2]
[330792540,1719791714836,500.0,0.0001501,2]
[330792541,1719791722494,757.85,0.0001501,2]
[330792542,1719791747846,500.0,0.0001501,2]
[330792543,1719791777948,726.67,0.0001501,2]
[330792544,1719791801335,549.26,0.0001501,2]
[330792545,1719791820042,3855.33,0.0001501,2]
[330792546,1719791835888,696.39,0.0001501,2]
[330792547,1719791879047,3694.69,0.0001501,2]
[330792548,1719791881122,566.3,0.0001501,2]
[330792549,1719791914953,726.27,0.0001501,2]
[330792550,1719791932397,6503.11,0.0001501,2]
[330792552,1719791980460,696.01,0.0001501,2]
[330792553,1719791991199,526.37,0.0001501,2]
[330792554,1719792033292,200.0,0.00022083,120]
[330792555,1719792050058,504.44,0.0001501,2]
[330792556,1719792056091,1285.13437956,0.00014999,2]
[330792557,1719792077444,542.7,0.0001501,2]
[330792559,1719792128765,6232.15,0.0001501,2]
[330792560,1719792133947,520.09,0.0001501,2]
[330792561,1719792189091,5972.47,0.0001501,2]
[330792565,1719792608329,5000.0,0.00025,120]
[330792604,1719792632228,-5083.64401388,0.0001532,2]
[330792909,1719793048164,483.31360815,0.00014999,2]
[330792910,1719793119856,517.74740795,0.00014999,2]
[330792911,1719793329214,195.13080103,0.00015006,2]
[330792912,1719793472807,154.94537953,0.00014999,2]
[330792913,1719793534113,206.16607887,0.00014999,2]
[330792934,1719793832359,-634.19974913,0.00015351,2]
[330792935,1719793832369,-272.3629789,0.00015398,2]
[330792936,1719793832379,-213.35811475,0.0001545,2]
[330792937,1719793832388,-1242.38,0.00015549,2]
[330792938,1719793832401,-500.0,0.00015549,2]
[330792939,1719793832411,-1013.78,0.00015549,2]
[330792940,1719793832420,-9267.93,0.00015549,2]
[330792941,1719793832430,-1344.05,0.00015549,2]
[330792942,1719793832439,-49.79841731,0.00015549,2]
[330793010,1719793846485,-702.95848849,0.00015549,2]
[330793014,1719793857485,560.65,0.00010959,2]
[330793015,1719793868056,467.21,0.00010959,2]
[330793016,1719793878882,389.34,0.00010959,2]
[330793017,1719793889403,324.45,0.00010959,2]
[330793018,1719793899926,270.38,0.00010959,2]
[330793019,1719793910460,225.31,0.00010959,2]
[330793020,1719793920958,187.76,0.00010959,2]
[330793021,1719793931704,156.47,0.00010959,2]
[330793022,1719793937860,72831.99004202,0.00015,2]
[330793023,1719793937886,352043.84695105,0.00015,2]
[330793024,1719793942226,782.37,0.00010959,2]
[330793026,1719794083363,2135.09451617,0.00013283,2]
[330793028,1719794277037,777.30358977,0.00014999,2]
[330793032,1719794458385,333.34473273,0.00015,2]
[330793033,1719794462983,328.39688033,0.00015,2]
[330793036,1719794636167,9361.0,0.00025,120]
[330793038,1719794674384,1205.54859605,0.00014999,2]
[330793040,1719794764946,329.48964541,0.00014999,2]
[330793240,1719795044185,-547.22076382,0.00015313,2]
[330793266,1719795220177,261.61,0.00025,120]
[330793276,1719795546510,10000.0,0.000241,59]
[330793277,1719795615509,5000.0,0.000225,30]
[330793278,1719795635263,5000.0,0.000225,30]
[330793279,1719795816842,5101.72379297,0.00014966,2]
[330793282,1719796024946,4026.74481855,0.00014999,2]
[330793283,1719796151302,182.46691096,0.00014999,2]
[330793370,1719796238858,-641.71806595,0.000153,2]
[330793371,1719796238871,-2012.28193405,0.000153,2]
[330793372,1719796238880,-73.48922364,0.00015313,2]
[330793373,1719796238890,-163.9479206,0.00015443,2]
[330793374,1719796238900,-300.0,0.00015501,2]
[330793375,1719796238909,-531.39834961,0.00015502,2]
[330793376,1719796238919,-8396.17057164,0.00015502,2]
[330793397,1719796240124,-22526.47617127,0.00015502,2]
[330793398,1719796240134,-1190.62,0.00015541,2]
[330793399,1719796240148,-500.0,0.00015541,2]
[330793400,1719796240158,-971.54,0.00015541,2]
[330793401,1719796240168,-3078.66828836,0.00015541,2]
[330793488,1719796243377,-4135.09451617,0.00015541,2]
[330793489,1719796243389,-1000.0,0.00015541,2]
[330793491,1719796243401,-675.42719547,0.00015541,2]
[330793493,1719796243411,-1289.42,0.00015541,2]
[330793495,1719796243420,-2412.06,0.00015541,2]
[330793497,1719796243430,-485.299881,0.00015541,2]
[330793499,1719796243440,-485.299881,0.00015541,2]
[330793501,1719796243449,-769.68,0.00015541,2]
[330793503,1719796243459,-151.0,0.00015541,2]
[330793505,1719796243471,-151.0,0.00015542,2]
[330793507,1719796243481,-151.0,0.00015542,2]
[330793508,1719796243490,-500.0,0.00015542,2]
[330793509,1719796243645,-151.0,0.00015542,2]